[Event "56th Biel Festival MTO 2023"]
[White "Akshit Kumar J"]
[Black "Seul,Georg"]
[Site "Biel"]
[Round "1.36"]
[Annotator "ChessBase"]
[Result "0-1"]
[Date "2023.07.18"]
[WhiteElo "2105"]
[BlackElo "2376"]
[PlyCount "136"]
[TimeControl "60"]

1. e4 {[%emt 0:0:0]} c6 {[%emt 0:0:0]} 2. Nc3 {[%emt 0:0:0]} d5 {[%emt 0:0:0]} 3. Nf3 {[%emt 0:0:0]} Bg4 {[%emt 0:0:0]} 4. h3 {[%emt 0:0:0]} Bxf3 {[%emt 0:0:0]} 5. Qxf3 {[%emt 0:0:0]} e6 {[%emt 0:0:0]} 6. Be2 {[%emt 0:0:0]} d4 {[%emt 0:0:0]} 7. Nb1 {[%emt 0:0:0]} Bd6 {[%emt 0:0:0]} 8. d3 {[%emt 0:0:0]} Nd7 {[%emt 0:0:0]} 9. g3 {[%emt 0:0:0]} Ne7 {[%emt 0:0:0]} 10. O-O {[%emt 0:1:25]} O-O {[%emt 0:0:0]} 11. Nd2 {[%emt 0:2:39]} c5 {[%emt 0:13:26]} 12. Qg2 {[%emt 0:2:15]} Nc6 {[%emt 0:1:34]} 13. Nf3 {[%emt 0:9:18]} Rc8 {[%emt 0:6:48]} 14. Nh4 {[%emt 0:11:18]} Be7 {[%emt 0:2:22]} 15. f4 {[%emt 0:23:0]} Bxh4 {[%emt 0:8:2]} 16. gxh4 {[%emt 0:2:41]} f5 {[%emt 0:6:41]} 17. h5 {[%emt 0:0:49]} Kh8 {[%emt 0:0:15]} 18. Bd2 {[%emt 0:10:20]} Nf6 {[%emt 0:1:38]} 19. Rae1 {[%emt 0:3:26]} Qe8 {[%emt 0:9:21]} 20. Qf3 {[%emt 0:11:21]} Rc7 {[%emt 0:13:28]} 21. Kh2 {[%emt 0:1:19]} Re7 {[%emt 0:1:23]} 22. e5 {[%emt 0:3:52]} Nd5 {[%emt 0:0:18]} 23. Rg1 {[%emt 0:1:1]} Ncb4 {[%emt 0:24:4]} 24. Bd1 {[%emt 0:12:53]} Nxa2 {[%emt 0:0:30]} 25. Rg5 {[%emt 0:0:12]} Nab4 {[%emt 0:0:41]} 26. Reg1 {[%emt 0:0:22]} Nc6 {[%emt 0:3:7]} 27. Qg3 {[%emt 0:0:54]} Qf7 {[%emt 0:0:17]} 28. h6 {[%emt 0:1:58]} g6 {[%emt 0:1:13]} 29. h4 {[%emt 0:1:27]} Ree8 {[%emt 0:1:4]} 30. h5 {[%emt 0:0:14]} Nce7 {[%emt 0:0:29]} 31. hxg6 {[%emt 0:2:35]} hxg6 {[%emt 0:0:6]} 32. Bh5 {[%emt 0:0:21]} Rg8 {[%emt 0:0:45]} 33. Bxg6 {[%emt 0:0:15]} Nxg6 {[%emt 0:0:39]} 34. Rxg6 {[%emt 0:0:1]} Rxg6 {[%emt 0:1:15]} 35. Qxg6 {[%emt 0:0:2]} Qxg6 {[%emt 0:0:19]} 36. Rxg6 {[%emt 0:0:2]} Re7 {[%emt 0:0:7]} 37. Rg3 {[%emt 0:2:22]} Kh7 {[%emt 0:0:10]} 38. Rh3 {[%emt 0:0:34]} Kg6 {[%emt 0:0:31]} 39. c4 {[%emt 0:0:28]} dxc3 {[%emt 0:2:44]} 40. bxc3 {[%emt 0:0:0]} Rh7 {[%emt 0:0:0]} 41. c4 {[%emt 0:0:0]} Ne7 {[%emt 0:0:0]} 42. Be3 {[%emt 0:0:0]} b6 {[%emt 0:0:0]} 43. Rg3+ {[%emt 0:0:0]} Kf7 {[%emt 0:0:0]} 44. Rh3 {[%emt 0:0:16]} Ng8 {[%emt 0:0:0]} 45. Kg2 {[%emt 0:4:2]} Rxh6 {[%emt 0:0:0]} 46. Rf3 {[%emt 0:0:4]} Ne7 {[%emt 0:1:26]} 47. d4 {[%emt 0:0:23]} cxd4 {[%emt 0:0:33]} 48. Bxd4 {[%emt 0:0:2]} Nc6 {[%emt 0:16:11]} 49. Bb2 {[%emt 0:0:35]} Rh8 {[%emt 0:11:34]} 50. Ba3 {[%emt 0:6:42]} Na5 {[%emt 0:4:26]} 51. Rd3 {[%emt 0:12:40]} Nxc4 {[%emt 0:1:2]} 52. Rd7+ {[%emt 0:0:1]} Kg6 {[%emt 0:0:22]} 53. Rxa7 {[%emt 0:0:12]} Rd8 {[%emt 0:3:27]} 54. Bb4 {[%emt 0:1:1]} Ne3+ {[%emt 0:1:19]} 55. Kf3 {[%emt 0:8:41]} Rd3 {[%emt 0:0:24]} 56. Ke2 {[%emt 0:2:4]} Rb3 {[%emt 0:0:9]} 57. Be7 {[%emt 0:2:19]} Nd5 {[%emt 0:0:30]} 58. Bg5 {[%emt 0:0:6]} Rc3 {[%emt 0:3:45]} 59. Rd7 {[%emt 0:0:31]} Rc2+ {[%emt 0:1:2]} 60. Kd1 {[%emt 0:0:0]} Rc8 {[%emt 0:0:0]} 61. Rd6 {[%emt 0:0:0]} Re8 {[%emt 0:0:0]} 62. Ke2 {[%emt 0:0:0]} b5 {[%emt 0:0:0]} 63. Kd3 {[%emt 0:0:0]} b4 {[%emt 0:0:0]} 64. Kc4 {[%emt 0:0:0]} Kh5 {[%emt 0:0:0]} 65. Bd8 {[%emt 0:3:20]} Kg4 {[%emt 0:0:0]} 66. Bf6 {[%emt 0:0:34]} Kxf4 {[%emt 0:0:0]} 67. Bg7 {[%emt 0:0:30]} Ke4 {[%emt 0:0:0]} 68. Kb3 {[%emt 0:0:29]} f4 {[%emt 0:0:0]} 0-1

[Event "56th Biel Festival MTO 2023"]
[White "Jain Kashish Manoj"]
[Black "Lorscheid,Gerhard"]
[Site "Biel"]
[Round "1.37"]
[Annotator "ChessBase"]
[Result "1-0"]
[Date "2023.07.18"]
[WhiteElo "2375"]
[BlackElo "2099"]
[PlyCount "57"]
[TimeControl "60"]

1. e4 {[%emt 0:0:0]} d6 {[%emt 0:0:0]} 2. d4 {[%emt 0:0:0]} Nf6 {[%emt 0:0:0]} 3. Nc3 {[%emt 0:0:0]} e5 {[%emt 0:0:0]} 4. Nf3 {[%emt 0:0:0]} Nbd7 {[%emt 0:0:0]} 5. Bc4 {[%emt 0:0:0]} Be7 {[%emt 0:0:0]} 6. O-O {[%emt 0:0:0]} O-O {[%emt 0:0:0]} 7. Re1 {[%emt 0:0:0]} c6 {[%emt 0:0:0]} 8. a4 {[%emt 0:0:0]} h6 {[%emt 0:0:0]} 9. h3 {[%emt 0:1:20]} Re8 {[%emt 0:0:0]} 10. a5 {[%emt 0:15:46]} Rb8 {[%emt 0:0:0]} 11. d5 {[%emt 0:16:28]} b5 {[%emt 0:6:26]} 12. axb6 {[%emt 0:5:0]} Nxb6 {[%emt 0:3:18]} 13. Bb3 {[%emt 0:0:7]} cxd5 {[%emt 0:2:22]} 14. exd5 {[%emt 0:1:4]} a6 {[%emt 0:1:37]} 15. Na4 {[%emt 0:10:32]} Nfd7 {[%emt 0:17:45]} 16. Nxb6 {[%emt 0:6:17]} Nxb6 {[%emt 0:0:53]} 17. Be3 {[%emt 0:13:28]} Qc7 {[%emt 0:2:13]} 18. Nd2 {[%emt 0:8:15]} Qb7 {[%emt 0:19:46]} 19. c4 {[%emt 0:5:52]} Bf5 {[%emt 0:18:0]} 20. Ra3 {[%emt 0:3:20]} Rec8 {[%emt 0:9:22]} 21. Qf3 {[%emt 0:0:52]} Bg6 {[%emt 0:0:55]} 22. Rea1 {[%emt 0:0:7]} Ra8 {[%emt 0:1:37]} 23. Qg3 {[%emt 0:0:45]} Kh7 {[%emt 0:1:44]} 24. Kh1 {[%emt 0:5:36]} Nd7 {[%emt 0:0:59]} 25. Ba4 {[%emt 0:2:16]} f5 {[%emt 0:6:26]} 26. f4 {[%emt 0:2:22]} Bf6 {[%emt 0:2:30]} 27. Rb3 {[%emt 0:0:59]} Qc7 {[%emt 0:0:44]} 28. Bc6 {[%emt 0:0:8]} Rab8 {[%emt 0:1:50]} 29. Rxa6 {[%emt 0:0:19]} 1-0

[Event "56th Biel Festival MTO 2023"]
[White "Malli,Suvirr"]
[Black "Haimovich,Tal"]
[Site "Biel"]
[Round "1.38"]
[Annotator "ChessBase"]
[Result "1/2-1/2"]
[Date "2023.07.18"]
[WhiteElo "2094"]
[BlackElo "2374"]
[PlyCount "89"]
[TimeControl "60"]

1. e4 {[%emt 0:0:0]} e6 {[%emt 0:0:0]} 2. d4 {[%emt 0:0:0]} d5 {[%emt 0:0:0]} 3. Nc3 {[%emt 0:0:0]} Nf6 {[%emt 0:0:0]} 4. Bg5 {[%emt 0:0:0]} dxe4 {[%emt 0:0:0]} 5. Nxe4 {[%emt 0:0:0]} Be7 {[%emt 0:0:0]} 6. Bxf6 {[%emt 0:0:0]} gxf6 {[%emt 0:0:0]} 7. Nf3 {[%emt 0:0:0]} b6 {[%emt 0:0:0]} 8. c3 {[%emt 0:0:0]} Bb7 {[%emt 0:0:0]} 9. Ng3 {[%emt 0:1:15]} Nd7 {[%emt 0:0:0]} 10. Bc4 {[%emt 0:11:43]} c6 {[%emt 0:7:58]} 11. Qd2 {[%emt 0:14:27]} Qc7 {[%emt 0:1:24]} 12. O-O-O {[%emt 0:8:21]} O-O-O {[%emt 0:4:23]} 13. Qe2 {[%emt 0:3:19]} Kb8 {[%emt 0:5:29]} 14. Rhe1 {[%emt 0:2:48]} Rhg8 {[%emt 0:5:40]} 15. Kb1 {[%emt 0:4:31]} Rde8 {[%emt 0:9:23]} 16. Qf1 {[%emt 0:2:9]} Rg7 {[%emt 0:15:26]} 17. Ka1 {[%emt 0:4:18]} f5 {[%emt 0:4:44]} 18. Nh5 {[%emt 0:20:28]} Rgg8 {[%emt 0:9:30]} 19. Ne5 {[%emt 0:6:52]} Nxe5 {[%emt 0:1:32]} 20. dxe5 {[%emt 0:1:18]} c5 {[%emt 0:1:7]} 21. f3 {[%emt 0:2:34]} Rd8 {[%emt 0:0:37]} 22. Qe2 {[%emt 0:1:1]} Rxd1+ {[%emt 0:7:44]} 23. Rxd1 {[%emt 0:0:14]} Rd8 {[%emt 0:0:11]} 24. Rxd8+ {[%emt 0:2:35]} Qxd8 {[%emt 0:0:44]} 25. Kb1 {[%emt 0:6:59]} Bg5 {[%emt 0:3:56]} 26. Kc2 {[%emt 0:0:30]} Kc7 {[%emt 0:9:47]} 27. Qd3 {[%emt 0:0:30]} h6 {[%emt 0:0:30]} 28. Qxd8+ {[%emt 0:3:59]} Kxd8 {[%emt 0:0:9]} 29. f4 {[%emt 0:0:35]} Be7 {[%emt 0:2:53]} 30. Bf1 {[%emt 0:0:18]} c4 {[%emt 0:1:40]} 31. b4 {[%emt 0:2:18]} cxb3+ {[%emt 0:1:49]} 32. axb3 {[%emt 0:0:7]} Bc5 {[%emt 0:1:23]} 33. Kd2 {[%emt 0:1:2]} a5 {[%emt 0:4:27]} 34. c4 {[%emt 0:0:41]} Ke7 {[%emt 0:2:15]} 35. Nf6 {[%emt 0:0:34]} Bc6 {[%emt 0:0:2]} 36. h3 {[%emt 0:1:24]} Kf8 {[%emt 0:1:25]} 37. g4 {[%emt 0:0:24]} fxg4 {[%emt 0:1:38]} 38. hxg4 {[%emt 0:0:0]} Be7 {[%emt 0:0:0]} 39. Nh5 {[%emt 0:0:0]} Ke8 {[%emt 0:0:0]} 40. Ke3 {[%emt 0:0:0]} Kd8 {[%emt 0:0:0]} 41. Bd3 {[%emt 0:1:20]} Bc5+ {[%emt 0:0:0]} 42. Kd2 {[%emt 0:6:10]} Ba3 {[%emt 0:0:0]} 43. Be2 {[%emt 0:4:23]} Be4 {[%emt 0:9:30]} 44. Bd3 {[%emt 0:3:4]} Bf3 {[%emt 0:11:23]} 45. Be2 {[%emt 0:0:21]} 1/2-1/2

[Event "56th Biel Festival MTO 2023"]
[White "Deuer,Marius"]
[Black "Stijve,Niels"]
[Site "Biel"]
[Round "1.39"]
[Annotator "ChessBase"]
[Result "1-0"]
[Date "2023.07.18"]
[WhiteElo "2374"]
[BlackElo "2088"]
[PlyCount "107"]
[TimeControl "60"]

1. d4 {[%emt 0:0:0]} d5 {[%emt 0:0:0]} 2. c4 {[%emt 0:0:0]} c6 {[%emt 0:0:0]} 3. Nf3 {[%emt 0:0:0]} Nf6 {[%emt 0:0:0]} 4. Qc2 {[%emt 0:0:0]} g6 {[%emt 0:0:0]} 5. Bf4 {[%emt 0:0:0]} Bg7 {[%emt 0:0:0]} 6. e3 {[%emt 0:0:0]} O-O {[%emt 0:0:0]} 7. Nc3 {[%emt 0:0:0]} Bf5 {[%emt 0:14:52]} 8. Qb3 {[%emt 0:0:0]} b6 {[%emt 0:3:18]} 9. Ne5 {[%emt 0:13:37]} e6 {[%emt 0:16:6]} 10. Be2 {[%emt 0:16:6]} Nfd7 {[%emt 0:21:33]} 11. Nf3 {[%emt 0:4:47]} Qe7 {[%emt 0:6:40]} 12. cxd5 {[%emt 0:10:34]} exd5 {[%emt 0:5:5]} 13. O-O {[%emt 0:1:24]} Nf6 {[%emt 0:3:41]} 14. h3 {[%emt 0:8:38]} Qb7 {[%emt 0:4:57]} 15. Rac1 {[%emt 0:7:29]} Nbd7 {[%emt 0:1:33]} 16. a4 {[%emt 0:1:37]} Rac8 {[%emt 0:4:31]} 17. a5 {[%emt 0:1:58]} Rfd8 {[%emt 0:1:30]} 18. g4 {[%emt 0:3:37]} Be6 {[%emt 0:0:56]} 19. Ng5 {[%emt 0:0:35]} c5 {[%emt 0:3:39]} 20. a6 {[%emt 0:1:57]} Qc6 {[%emt 0:2:30]} 21. Nb5 {[%emt 0:4:45]} c4 {[%emt 0:2:17]} 22. Qb4 {[%emt 0:0:38]} Bf8 {[%emt 0:2:0]} 23. Bd6 {[%emt 0:5:17]} Bxd6 {[%emt 0:0:53]} 24. Nxd6 {[%emt 0:0:7]} Ra8 {[%emt 0:1:6]} 25. Nb5 {[%emt 0:2:36]} Nb8 {[%emt 0:2:30]} 26. Nxe6 {[%emt 0:2:47]} fxe6 {[%emt 0:0:30]} 27. Qa4 {[%emt 0:4:55]} Qd7 {[%emt 0:2:5]} 28. b3 {[%emt 0:1:1]} Nc6 {[%emt 0:1:26]} 29. bxc4 {[%emt 0:0:35]} Ne4 {[%emt 0:0:39]} 30. cxd5 {[%emt 0:1:23]} exd5 {[%emt 0:0:23]} 31. Nc7 {[%emt 0:1:37]} Qxc7 {[%emt 0:0:47]} 32. Qxc6 {[%emt 0:1:8]} Qxc6 {[%emt 0:0:31]} 33. Rxc6 {[%emt 0:0:7]} Rac8 {[%emt 0:0:29]} 34. Rfc1 {[%emt 0:0:50]} Nd6 {[%emt 0:0:29]} 35. Bf3 {[%emt 0:0:56]} Rxc6 {[%emt 0:0:27]} 36. Bxd5+ {[%emt 0:1:21]} Nf7 {[%emt 0:0:7]} 37. Bxf7+ {[%emt 0:1:59]} Kxf7 {[%emt 0:0:2]} 38. Rxc6 {[%emt 0:0:8]} Rd7 {[%emt 0:0:8]} 39. Kf1 {[%emt 0:1:4]} Re7 {[%emt 0:1:6]} 40. d5 {[%emt 0:0:0]} Re5 {[%emt 0:0:0]} 41. Rc7+ {[%emt 0:0:0]} Kf6 {[%emt 0:0:0]} 42. Rxa7 {[%emt 0:0:0]} Rxd5 {[%emt 0:0:0]} 43. Rxh7 {[%emt 0:0:0]} Ra5 {[%emt 0:0:0]} 44. a7 {[%emt 0:0:0]} Ra2 {[%emt 0:0:0]} 45. Rb7 {[%emt 0:0:0]} b5 {[%emt 0:0:0]} 46. Kg2 {[%emt 0:0:0]} b4 {[%emt 0:0:0]} 47. Rxb4 {[%emt 0:0:0]} Rxa7 {[%emt 0:0:0]} 48. Rb6+ {[%emt 0:0:0]} Kg7 {[%emt 0:0:0]} 49. Kg3 {[%emt 0:0:0]} Ra4 {[%emt 0:0:0]} 50. h4 {[%emt 0:0:0]} Ra5 {[%emt 0:0:0]} 51. Kf4 {[%emt 0:0:0]} Rc5 {[%emt 0:0:0]} 52. Rb7+ {[%emt 0:0:0]} Kf6 {[%emt 0:0:0]} 53. g5+ {[%emt 0:0:0]} Ke6 {[%emt 0:0:0]} 54. Rg7 {[%emt 0:0:0]} 1-0

[Event "56th Biel Festival MTO 2023"]
[White "Matsumura,Cocoro"]
[Black "Pham,Le Thao Nguyen"]
[Site "Biel"]
[Round "1.40"]
[Annotator "ChessBase"]
[Result "1-0"]
[Date "2023.07.18"]
[WhiteElo "2081"]
[BlackElo "2369"]
[PlyCount "75"]
[TimeControl "60"]

1. e4 {[%emt 0:0:0]} c6 {[%emt 0:0:0]} 2. d4 {[%emt 0:0:0]} d5 {[%emt 0:0:0]} 3. e5 {[%emt 0:0:0]} Bf5 {[%emt 0:0:0]} 4. h4 {[%emt 0:0:0]} h5 {[%emt 0:0:0]} 5. c4 {[%emt 0:0:0]} e6 {[%emt 0:0:0]} 6. Nc3 {[%emt 0:0:0]} Ne7 {[%emt 0:1:26]} 7. Nge2 {[%emt 0:1:33]} dxc4 {[%emt 0:11:13]} 8. Ng3 {[%emt 0:1:49]} Na6 {[%emt 0:9:28]} 9. Bxc4 {[%emt 0:4:2]} Nb4 {[%emt 0:1:47]} 10. O-O {[%emt 0:0:45]} Bc2 {[%emt 0:2:9]} 11. Qe2 {[%emt 0:16:2]} Bg6 {[%emt 0:9:27]} 12. Bg5 {[%emt 0:8:2]} Qd7 {[%emt 0:8:15]} 13. Rad1 {[%emt 0:13:18]} Nbd5 {[%emt 0:13:48]} 14. Nge4 {[%emt 0:0:45]} Bxe4 {[%emt 0:6:19]} 15. Nxe4 {[%emt 0:3:56]} Nf5 {[%emt 0:3:2]} 16. Ng3 {[%emt 0:8:58]} Nxg3 {[%emt 0:12:8]} 17. fxg3 {[%emt 0:0:14]} Be7 {[%emt 0:0:41]} 18. Bc1 {[%emt 0:5:7]} f5 {[%emt 0:6:0]} 19. exf6 {[%emt 0:1:29]} Bxf6 {[%emt 0:0:45]} 20. Rf5 {[%emt 0:7:19]} O-O-O {[%emt 0:1:46]} 21. Rxh5 {[%emt 0:1:41]} Rxh5 {[%emt 0:0:55]} 22. Qxh5 {[%emt 0:0:8]} Nb6 {[%emt 0:0:43]} 23. Bb3 {[%emt 0:1:34]} Bxd4+ {[%emt 0:2:50]} 24. Kh1 {[%emt 0:0:38]} e5 {[%emt 0:0:50]} 25. Rf1 {[%emt 0:2:54]} Kb8 {[%emt 0:5:5]} 26. Bg5 {[%emt 0:2:35]} Rc8 {[%emt 0:1:31]} 27. Rf7 {[%emt 0:0:42]} Qe8 {[%emt 0:2:12]} 28. Qg6 {[%emt 0:2:11]} c5 {[%emt 0:0:59]} 29. Qd6+ {[%emt 0:6:42]} Ka8 {[%emt 0:0:11]} 30. Rxg7 {[%emt 0:0:28]} Qb5 {[%emt 0:0:53]} 31. Rf7 {[%emt 0:5:22]} Qd3 {[%emt 0:0:14]} 32. Rf8 {[%emt 0:3:18]} Qb1+ {[%emt 0:1:13]} 33. Kh2 {[%emt 0:0:5]} Qg1+ {[%emt 0:0:13]} 34. Kh3 {[%emt 0:0:4]} Qh1+ {[%emt 0:0:11]} 35. Kg4 {[%emt 0:0:5]} Qxg2 {[%emt 0:0:8]} 36. Be6 {[%emt 0:2:18]} Qe4+ {[%emt 0:0:20]} 37. Kh5 {[%emt 0:0:41]} Qh7+ {[%emt 0:0:37]} 38. Bh6 {[%emt 0:0:27]} 1-0

[Event "56th Biel Festival MTO 2023"]
[White "Dotzer,Lukas"]
[Black "Erne,Raphael"]
[Site "Biel"]
[Round "1.41"]
[Annotator "ChessBase"]
[Result "1/2-1/2"]
[Date "2023.07.18"]
[WhiteElo "2369"]
[BlackElo "2077"]
[PlyCount "124"]
[TimeControl "60"]

1. e4 {[%emt 0:0:0]} c6 {[%emt 0:0:0]} 2. d4 {[%emt 0:0:0]} d5 {[%emt 0:0:0]} 3. Nc3 {[%emt 0:0:0]} dxe4 {[%emt 0:0:0]} 4. Nxe4 {[%emt 0:0:0]} Bf5 {[%emt 0:0:0]} 5. Ng3 {[%emt 0:0:0]} Bg6 {[%emt 0:0:0]} 6. h4 {[%emt 0:0:0]} h6 {[%emt 0:0:0]} 7. Nf3 {[%emt 0:0:0]} e6 {[%emt 0:0:0]} 8. Ne5 {[%emt 0:0:0]} Bh7 {[%emt 0:0:0]} 9. Bc4 {[%emt 0:0:0]} Nf6 {[%emt 0:1:2]} 10. Qe2 {[%emt 0:0:0]} Nd5 {[%emt 0:10:50]} 11. c3 {[%emt 0:6:20]} Nd7 {[%emt 0:7:14]} 12. Nh5 {[%emt 0:10:47]} Nxe5 {[%emt 0:6:9]} 13. Qxe5 {[%emt 0:6:22]} Nf6 {[%emt 0:10:13]} 14. Nxf6+ {[%emt 0:4:57]} Qxf6 {[%emt 0:2:20]} 15. Qxf6 {[%emt 0:4:27]} gxf6 {[%emt 0:0:7]} 16. h5 {[%emt 0:4:45]} Be4 {[%emt 0:16:27]} 17. f3 {[%emt 0:2:43]} Bd5 {[%emt 0:2:5]} 18. Bd3 {[%emt 0:8:5]} c5 {[%emt 0:2:27]} 19. Bb5+ {[%emt 0:5:0]} Kd8 {[%emt 0:3:1]} 20. c4 {[%emt 0:1:57]} a6 {[%emt 0:2:13]} 21. cxd5 {[%emt 0:2:1]} axb5 {[%emt 0:0:14]} 22. dxe6 {[%emt 0:4:58]} fxe6 {[%emt 0:1:41]} 23. dxc5 {[%emt 0:1:52]} Bxc5 {[%emt 0:1:23]} 24. Rh4 {[%emt 0:6:35]} Ke7 {[%emt 0:2:58]} 25. Bd2 {[%emt 0:4:17]} e5 {[%emt 0:8:32]} 26. Bb4 {[%emt 0:10:7]} b6 {[%emt 0:2:46]} 27. a3 {[%emt 0:2:7]} Ke6 {[%emt 0:5:3]} 28. Rc1 {[%emt 0:2:37]} Rac8 {[%emt 0:0:54]} 29. Bd2 {[%emt 0:9:25]} Rcd8 {[%emt 0:4:25]} 30. Rg4 {[%emt 0:1:55]} Rhg8 {[%emt 0:7:2]} 31. b4 {[%emt 0:3:47]} Rxg4 {[%emt 0:4:24]} 32. fxg4 {[%emt 0:0:3]} Bf8 {[%emt 0:1:3]} 33. Rc6+ {[%emt 0:0:58]} Rd6 {[%emt 0:0:22]} 34. Rxd6+ {[%emt 0:0:50]} Kxd6 {[%emt 0:0:13]} 35. Be3 {[%emt 0:0:26]} Ke6 {[%emt 0:2:5]} 36. Bxb6 {[%emt 0:0:30]} f5 {[%emt 0:0:23]} 37. gxf5+ {[%emt 0:0:15]} Kxf5 {[%emt 0:0:2]} 38. Bc5 {[%emt 0:0:31]} Bg7 {[%emt 0:0:25]} 39. Kd2 {[%emt 0:0:43]} Ke4 {[%emt 0:0:52]} 40. Be3 {[%emt 0:0:0]} Bf8 {[%emt 0:0:0]} 41. Ke2 {[%emt 0:0:0]} Kf5 {[%emt 0:0:0]} 42. Bf2 {[%emt 0:28:4]} Be7 {[%emt 0:4:8]} 43. Bc5 {[%emt 0:0:49]} Bg5 {[%emt 0:4:17]} 44. Be3 {[%emt 0:3:2]} Kg4 {[%emt 0:4:48]} 45. Bxg5 {[%emt 0:0:32]} Kxg5 {[%emt 0:0:5]} 46. Ke3 {[%emt 0:0:6]} Kxh5 {[%emt 0:0:42]} 47. Ke4 {[%emt 0:0:6]} Kg4 {[%emt 0:0:17]} 48. Kxe5 {[%emt 0:0:15]} Kg3 {[%emt 0:0:36]} 49. a4 {[%emt 0:1:22]} bxa4 {[%emt 0:0:7]} 50. Kd4 {[%emt 0:0:5]} a3 {[%emt 0:0:41]} 51. Kc3 {[%emt 0:0:8]} a2 {[%emt 0:1:13]} 52. Kb2 {[%emt 0:0:5]} Kxg2 {[%emt 0:0:12]} 53. b5 {[%emt 0:0:16]} h5 {[%emt 0:0:4]} 54. b6 {[%emt 0:0:16]} h4 {[%emt 0:0:5]} 55. b7 {[%emt 0:0:5]} h3 {[%emt 0:0:14]} 56. b8=Q {[%emt 0:0:26]} h2 {[%emt 0:0:13]} 57. Qg8+ {[%emt 0:1:46]} Kh1 {[%emt 0:0:32]} 58. Qxa2 {[%emt 0:1:7]} Kg1 {[%emt 0:0:23]} 59. Qb1+ {[%emt 0:0:9]} Kg2 {[%emt 0:0:18]} 60. Qe4+ {[%emt 0:0:0]} Kg1 {[%emt 0:0:0]} 61. Kc3 {[%emt 0:0:0]} h1=Q {[%emt 0:0:0]} 62. Qxh1+ {[%emt 0:0:0]} Kxh1 {[%emt 0:0:0]} 1/2-1/2

[Event "56th Biel Festival MTO 2023"]
[White "Monteverde,Jonathan"]
[Black "Sukandar,Irine Kharisma"]
[Site "Biel"]
[Round "1.42"]
[Annotator "ChessBase"]
[Result "0-1"]
[Date "2023.07.18"]
[WhiteElo "2074"]
[BlackElo "2358"]
[PlyCount "114"]
[TimeControl "60"]

1. d4 {[%emt 0:0:0]} Nf6 {[%emt 0:0:0]} 2. c4 {[%emt 0:0:0]} e6 {[%emt 0:0:0]} 3. Nc3 {[%emt 0:0:0]} Bb4 {[%emt 0:0:0]} 4. Qc2 {[%emt 0:0:0]} d5 {[%emt 0:0:0]} 5. cxd5 {[%emt 0:0:0]} exd5 {[%emt 0:0:0]} 6. Bg5 {[%emt 0:0:0]} h6 {[%emt 0:0:0]} 7. Bh4 {[%emt 0:0:0]} c5 {[%emt 0:0:0]} 8. dxc5 {[%emt 0:0:0]} O-O {[%emt 0:0:0]} 9. a3 {[%emt 0:20:28]} Bxc5 {[%emt 0:0:0]} 10. e3 {[%emt 0:4:22]} Be6 {[%emt 0:2:42]} 11. Nf3 {[%emt 0:4:6]} Nbd7 {[%emt 0:1:15]} 12. Be2 {[%emt 0:5:17]} Rc8 {[%emt 0:0:46]} 13. O-O {[%emt 0:5:47]} Be7 {[%emt 0:2:33]} 14. Qd1 {[%emt 0:6:33]} a6 {[%emt 0:14:12]} 15. Nd4 {[%emt 0:5:52]} b5 {[%emt 0:4:18]} 16. Bd3 {[%emt 0:16:24]} Ne5 {[%emt 0:7:36]} 17. Bb1 {[%emt 0:2:21]} Qd7 {[%emt 0:9:24]} 18. f4 {[%emt 0:10:26]} Bg4 {[%emt 0:2:44]} 19. Qc2 {[%emt 0:0:21]} Ng6 {[%emt 0:0:14]} 20. Bxf6 {[%emt 0:2:35]} Bxf6 {[%emt 0:0:5]} 21. h3 {[%emt 0:0:18]} Bxh3 {[%emt 0:3:14]} 22. gxh3 {[%emt 0:1:54]} Qxh3 {[%emt 0:0:8]} 23. Rf3 {[%emt 0:0:16]} Qg4+ {[%emt 0:0:24]} 24. Qg2 {[%emt 0:3:48]} Qxg2+ {[%emt 0:0:18]} 25. Kxg2 {[%emt 0:0:5]} Nh4+ {[%emt 0:0:22]} 26. Kf2 {[%emt 0:0:5]} Nxf3 {[%emt 0:0:45]} 27. Kxf3 {[%emt 0:0:9]} Bxd4 {[%emt 0:6:22]} 28. exd4 {[%emt 0:0:5]} Rc4 {[%emt 0:3:2]} 29. Ke3 {[%emt 0:0:10]} Re8+ {[%emt 0:5:26]} 30. Kd3 {[%emt 0:0:12]} Re1 {[%emt 0:1:3]} 31. Kd2 {[%emt 0:0:6]} Re6 {[%emt 0:0:18]} 32. Kd3 {[%emt 0:1:48]} Rg6 {[%emt 0:1:21]} 33. Nxd5 {[%emt 0:1:29]} Rg1 {[%emt 0:1:39]} 34. Nc3 {[%emt 0:1:22]} h5 {[%emt 0:0:37]} 35. a4 {[%emt 0:3:36]} Rc8 {[%emt 0:5:47]} 36. axb5 {[%emt 0:0:17]} axb5 {[%emt 0:0:5]} 37. Ra5 {[%emt 0:7:23]} b4 {[%emt 0:2:57]} 38. Nd5 {[%emt 0:0:12]} Rb8 {[%emt 0:1:6]} 39. Ne7+ {[%emt 0:1:33]} Kf8 {[%emt 0:0:23]} 40. Nc6 {[%emt 0:0:0]} Rc8 {[%emt 0:0:0]} 41. Na7 {[%emt 0:0:0]} Ra8 {[%emt 0:0:0]} 42. Bc2 {[%emt 0:0:0]} h4 {[%emt 0:0:0]} 43. Bb3 {[%emt 0:0:0]} Rg3+ {[%emt 0:0:0]} 44. Kc2 {[%emt 0:0:0]} Rg2+ {[%emt 0:0:0]} 45. Kd3 {[%emt 0:1:44]} Rxb2 {[%emt 0:10:18]} 46. Bd5 {[%emt 0:0:9]} Re8 {[%emt 0:0:19]} 47. Nc6 {[%emt 0:0:23]} Rf2 {[%emt 0:1:12]} 48. Be4 {[%emt 0:9:17]} g6 {[%emt 0:4:40]} 49. Ke3 {[%emt 0:3:19]} Rf1 {[%emt 0:0:20]} 50. Ne5 {[%emt 0:0:11]} h3 {[%emt 0:1:1]} 51. Ra7 {[%emt 0:6:16]} Re7 {[%emt 0:7:3]} 52. Ra8+ {[%emt 0:0:3]} Kg7 {[%emt 0:0:19]} 53. d5 {[%emt 0:6:11]} Re1+ {[%emt 0:2:27]} 54. Kd3 {[%emt 0:0:40]} h2 {[%emt 0:0:29]} 55. d6 {[%emt 0:0:15]} Rd1+ {[%emt 0:1:7]} 56. Kc2 {[%emt 0:2:43]} Rxd6 {[%emt 0:0:8]} 57. Bf3 {[%emt 0:0:22]} Rc7+ {[%emt 0:0:27]} 0-1

[Event "56th Biel Festival MTO 2023"]
[White "Besou,Hussain"]
[Black "Coles,Robin"]
[Site "Biel"]
[Round "1.43"]
[Annotator "ChessBase"]
[Result "1-0"]
[Date "2023.07.18"]
[WhiteElo "2348"]
[BlackElo "2070"]
[PlyCount "67"]
[TimeControl "60"]

1. d4 {[%emt 0:0:0]} d5 {[%emt 0:0:0]} 2. c4 {[%emt 0:0:0]} e6 {[%emt 0:0:0]} 3. Nf3 {[%emt 0:0:0]} Nf6 {[%emt 0:0:0]} 4. g3 {[%emt 0:0:0]} Be7 {[%emt 0:0:0]} 5. Bg2 {[%emt 0:0:0]} O-O {[%emt 0:0:0]} 6. O-O {[%emt 0:0:0]} c6 {[%emt 0:0:0]} 7. Qc2 {[%emt 0:0:0]} b6 {[%emt 0:0:0]} 8. b3 {[%emt 0:0:0]} Bb7 {[%emt 0:0:0]} 9. Bb2 {[%emt 0:0:0]} Nbd7 {[%emt 0:0:0]} 10. Nc3 {[%emt 0:0:0]} c5 {[%emt 0:0:58]} 11. cxd5 {[%emt 0:0:0]} exd5 {[%emt 0:4:4]} 12. Rfd1 {[%emt 0:2:37]} Re8 {[%emt 0:5:13]} 13. dxc5 {[%emt 0:6:56]} bxc5 {[%emt 0:5:48]} 14. Nh4 {[%emt 0:6:22]} Nb6 {[%emt 0:4:38]} 15. Nf5 {[%emt 0:15:51]} Bf8 {[%emt 0:6:38]} 16. a4 {[%emt 0:13:50]} a5 {[%emt 0:10:10]} 17. Nb5 {[%emt 0:3:52]} g6 {[%emt 0:8:29]} 18. Ne3 {[%emt 0:6:23]} Rb8 {[%emt 0:4:29]} 19. Nc4 {[%emt 0:4:14]} Nxc4 {[%emt 0:3:32]} 20. bxc4 {[%emt 0:0:16]} d4 {[%emt 0:1:18]} 21. e3 {[%emt 0:2:50]} Bxg2 {[%emt 0:3:53]} 22. Kxg2 {[%emt 0:0:39]} Qc8 {[%emt 0:1:43]} 23. exd4 {[%emt 0:1:32]} cxd4 {[%emt 0:0:21]} 24. Bxd4 {[%emt 0:3:9]} Qc6+ {[%emt 0:2:26]} 25. f3 {[%emt 0:4:22]} Bb4 {[%emt 0:8:45]} 26. Rac1 {[%emt 0:10:46]} Ng4 {[%emt 0:8:8]} 27. Nc3 {[%emt 0:4:17]} Bxc3 {[%emt 0:7:45]} 28. Qxc3 {[%emt 0:0:10]} Re2+ {[%emt 0:0:53]} 29. Kg1 {[%emt 0:3:15]} Nxh2 {[%emt 0:3:43]} 30. Rd3 {[%emt 0:1:8]} Qc7 {[%emt 0:8:11]} 31. Bf2 {[%emt 0:2:20]} Rbe8 {[%emt 0:2:10]} 32. Rc2 {[%emt 0:2:43]} Qe7 {[%emt 0:2:32]} 33. Kxh2 {[%emt 0:0:28]} Qc5 {[%emt 0:0:23]} 34. Rxe2 {[%emt 0:0:22]} 1-0